Workbook

Sheet Regression
A1: SUMMARY OUTPUT
A3: Regression Statistics
A4: Multiple R | B4: 0.5553169387
A5: R Square | B5: 0.3083769025
A6: Adjusted R Square | B6: 0.3080955261
A7: Standard Error | B7: 0.005987945678
A8: Observations | B8: 2460
A10: ANOVA
B11: df | C11: SS | D11: MS | E11: F | F11: Significance F
A12: Regression | B12: 1 | C12: 0.03929614389 | D12: 0.03929614389 | E12: 1095.958809 | F12: 4.584273056e-199
A13: Residual | B13: 2458 | C13: 0.08813280288 | D13: 3.585549344e-05
A14: Total | B14: 2459 | C14: 0.1274289468
B16: Coefficients | C16: Standard Error | D16: t Stat | E16: P-value | F16: Lower 95% | G16: Upper 95% | H16: Lower 95.0% | I16: Upper 95.0%
A17: Intercept | B17: -3.894036689e-05 | C17: 0.0001207447513 | D17: -0.3225015288 | E17: 0.7471002077 | F17: -0.0002757123207 | G17: 0.0001978315869 | H17: -0.0002757123207 | I17: 0.0001978315869
A18: X Variable 1 (Slope) | B18: 0.8556936483 | C18: 0.02584765762 | D18: 33.1052686 | E18: 4.584273056e-199 | F18: 0.805008212 | G18: 0.9063790846 | H18: 0.805008212 | I18: 0.9063790846
E19: Usually the confidence interval is 95%
A20: Y = mx+c | C20: m---> x variable, c is the intercept
A21: Y = (Xvariable) * x + Intercept
A23: ACC's return = 0.855694 * (Nifty's return) -3.9e-5
A25: m (the slope) or the Beta of ACC w.r.t Nifty is 0.855694
A26: This implies that if Nifty goes up by 1%, ACC will go up by 0.855%
A29: p value of X variable is 0
A30: p value of intercept is 0.7471
A31: In Regression, The NULL HYPOTHESIS is that the variable's value is zero!!
A32: Because the p value of X variable is close to zero, we will reject the hypothesis that its value is zero AND we will accept the fact that X variable's value is 0.855694
A34: Similarly, we can't reject the hypothesis that Intercept's value is zero AND can not accept that 0.000039 is the value for Interecept
A36: Therefore, final equation of regression
A38: ACC's return = 0.855694 * (Nifty's return)

Sheet Data_Nifty_ACC_with_lag
A1: Date | B1: NIFTY | C1: ACC | D1: Ret NSEI | E1: Ret ACC | G1: Returns of Nifty | H1: Returns Of acc (a day lag)
A2: 2010-04-07 | B2: 5374.649902 | C2: 804.82843
A3: 2010-04-08 | B3: 5304.450195 | C3: 795.226013 | D3: =LOG(B3)-LOG(B2) -> -0.005709804057 | E3: =LOG(C3)-LOG(C2) -> -0.005212731105 | G3: =D3 -> -0.005709804057 | H3: =E4 -> -0.004115626072
A4: 2010-04-09 | B4: 5361.75 | C4: 787.725586 | D4: =LOG(B4)-LOG(B3) -> 0.004666184407 | E4: -0.004115626072 | G4: =D4 -> 0.004666184407 | H4: =E5 -> -0.00175311569
A5: 2010-04-12 | B5: 5339.700195 | C5: 784.552185 | D5: -0.001789686821 | E5: -0.00175311569 | G5: -0.001789686821 | H5: -0.005140434667
A6: 2010-04-13 | B6: 5322.950195 | C6: 775.32074 | D6: -0.001364470988 | E6: -0.005140434667 | G6: -0.001364470988 | H6: -0.0006700690274
A7: 2010-04-15 | B7: 5273.600098 | C7: 774.125427 | D7: -0.004045208897 | E7: -0.0006700690274 | G7: -0.004045208897 | H7: -0.002922980231
A8: 2010-04-16 | B8: 5262.600098 | C8: 768.932739 | D8: -0.0009068242721 | E8: -0.002922980231 | G8: -0.0009068242721 | H8: -0.00585840645
A9: 2010-04-19 | B9: 5203.649902 | C9: 758.629883 | D9: -0.004892299642 | E9: -0.00585840645 | G9: -0.004892299642 | H9: 0.000919126279
A10: 2010-04-20 | B10: 5230.100098 | C10: 760.237122 | D10: 0.002201930998 | E10: 0.000919126279 | G10: 0.002201930998 | H10: 0.004287083583
A11: 2010-04-21 | B11: 5244.899902 | C11: 767.77887 | D11: 0.001227203339 | E11: 0.004287083583 | G11: 0.001227203339 | H11: -0.005536632495
A12: 2010-04-22 | B12: 5269.350098 | C12: 758.052917 | D12: 0.002019850079 | E12: -0.005536632495 | G12: 0.002019850079 | H12: -0.007621996693
A13: 2010-04-23 | B13: 5304.100098 | C13: 744.864929 | D13: 0.002854657147 | E13: -0.007621996693 | G13: 0.002854657147 | H13: 0.003088799064
A14: 2010-04-26 | B14: 5322.450195 | C14: 750.181458 | D14: 0.001499894805 | E14: 0.003088799064 | G14: 0.001499894805 | H14: -0.004195493082
A15: 2010-04-27 | B15: 5308.350098 | C15: 742.969238 | D15: -0.001152048339 | E15: -0.004195493082 | G15: -0.001152048339 | H15: 0.003192286283
A16: 2010-04-28 | B16: 5215.450195 | C16: 748.450562 | D16: -0.007667755407 | E16: 0.003192286283 | G16: -0.007667755407 | H16: -0.006141239472
A17: 2010-04-29 | B17: 5254.149902 | C17: 737.941406 | D17: 0.003210656681 | E17: -0.006141239472 | G17: 0.003210656681 | H17: 0.004704013983
A18: 2010-04-30 | B18: 5278 | C18: 745.977783 | D18: 0.001966926744 | E18: 0.004704013983 | G18: 0.001966926744 | H18: -0.0006483667757
A19: 2010-05-03 | B19: 5222.75 | C19: 744.864929 | D19: -0.004570148142 | E19: -0.0006483667757 | G19: -0.004570148142 | H19: -0.01243075677
A20: 2010-05-04 | B20: 5148.5 | C20: 723.846985 | D20: -0.006218520664 | E20: -0.01243075677 | G20: -0.006218520664 | H20: 0.003497002713
A21: 2010-05-05 | B21: 5124.899902 | C21: 729.699036 | D21: -0.001995329776 | E21: 0.003497002713 | G21: -0.001995329776 | H21: -0.00443772496
A22: 2010-05-06 | B22: 5090.850098 | C22: 722.280762 | D22: -0.002895078041 | E22: -0.00443772496 | G22: -0.002895078041 | H22: -0.007473124152
A23: 2010-05-07 | B23: 5018.049805 | C23: 709.958435 | D23: -0.006255341814 | E23: -0.007473124152 | G23: -0.006255341814 | H23: 0.01506346783
A24: 2010-05-10 | B24: 5193.600098 | C24: 735.01532 | D24: 0.01493353889 | E24: 0.01506346783 | G24: 0.01493353889 | H24: -0.002637854255
A25: 2010-05-11 | B25: 5136.149902 | C25: 730.564453 | D25: -0.004830815918 | E25: -0.002637854255 | G25: -0.004830815918 | H25: -0.004506601359
A26: 2010-05-12 | B26: 5156.649902 | C26: 723.022705 | D26: 0.001729956634 | E26: -0.004506601359 | G26: 0.001729956634 | H26: 0.006949632839
A27: 2010-05-13 | B27: 5178.899902 | C27: 734.685669 | D27: 0.001869869979 | E27: 0.006949632839 | G27: 0.001869869979 | H27: 0.0007059381894
A28: 2010-05-14 | B28: 5093.5 | C28: 735.880859 | D28: -0.007221206542 | E28: 0.0007059381894 | G28: -0.007221206542 | H28: -0.01293551026
A29: 2010-05-17 | B29: 5059.899902 | C29: 714.285767 | D29: -0.002874385046 | E29: -0.01293551026 | G29: -0.002874385046 | H29: -0.00243742897
A30: 2010-05-18 | B30: 5066.200195 | C30: 710.288147 | D30: 0.0005404218428 | E30: -0.00243742897 | G30: 0.0005404218428 | H30: -0.009759836636
A31: 2010-05-19 | B31: 4919.649902 | C31: 694.503967 | D31: -0.01274814921 | E31: -0.009759836636 | G31: -0.01274814921 | H31: 0.0007467469676
A32: 2010-05-20 | B32: 4947.600098 | C32: 695.699158 | D32: 0.002460391367 | E32: 0.0007467469676 | G32: 0.002460391367 | H32: 0.009667693438
A33: 2010-05-21 | B33: 4931.149902 | C33: 711.359558 | D33: -0.001446384604 | E33: 0.009667693438 | G33: -0.001446384604 | H33: -0.003993572471
A34: 2010-05-24 | B34: 4943.950195 | C34: 704.848206 | D34: 0.001125882204 | E34: -0.003993572471 | G34: 0.001125882204 | H34: -0.00693658263
A35: 2010-05-25 | B35: 4806.75 | C35: 693.679749 | D35: -0.01222255208 | E35: -0.00693658263 | G35: -0.01222255208 | H35: -0.005975318457
A36: 2010-05-26 | B36: 4917.399902 | C36: 684.200989 | D36: 0.009883993259 | E36: -0.005975318457 | G36: 0.009883993259 | H36: -0.006217895541
A37: 2010-05-27 | B37: 5003.100098 | C37: 674.474915 | D37: 0.00750366375 | E37: -0.006217895541 | G37: 0.00750366375 | H37: 0.004093761023
A38: 2010-05-28 | B38: 5066.549805 | C38: 680.862732 | D38: 0.005473124208 | E38: 0.004093761023 | G38: 0.005473124208 | H38: -0.003961103089
A39: 2010-05-31 | B39: 5086.299805 | C39: 674.680969 | D39: 0.001689639297 | E39: -0.003961103089 | G39: 0.001689639297 | H39: -0.0004510699156
A40: 2010-06-01 | B40: 4970.200195 | C40: 673.980591 | D40: -0.01002807343 | E40: -0.0004510699156 | G40: -0.01002807343 | H40: 0.004806373391
A41: 2010-06-02 | B41: 5019.850098 | C41: 681.481018 | D41: 0.004316866443 | E41: 0.004806373391 | G41: 0.004316866443 | H41: 0.007653624128
A42: 2010-06-03 | B42: 5110.5 | C42: 693.59729 | D42: 0.007772644121 | E42: 0.007653624128 | G42: 0.007772644121 | H42: 0.0002064375974
A43: 2010-06-04 | B43: 5135.5 | C43: 693.927063 | D43: 0.002119340932 | E43: 0.0002064375974 | G43: 0.002119340932 | H43: 0.005026081369
A44: 2010-06-07 | B44: 5034 | C44: 702.004517 | D44: -0.008669522343 | E44: 0.005026081369 | G44: -0.008669522343 | H44: -0.00479404677
A45: 2010-06-08 | B45: 4987.100098 | C45: 694.297913 | D45: -0.004065126015 | E45: -0.00479404677 | G45: -0.004065126015 | H45: 0.008020049918
A46: 2010-06-09 | B46: 5000.299805 | C46: 707.238525 | D46: 0.00114795909 | E46: 0.008020049918 | G46: 0.00114795909 | H46: 0.005457237156
A47: 2010-06-10 | B47: 5078.600098 | C47: 716.18158 | D47: 0.006747972427 | E47: 0.005457237156 | G47: 0.006747972427 | H47: -0.003588579478
A48: 2010-06-11 | B48: 5119.350098 | C48: 710.288147 | D48: 0.003470814035 | E48: -0.003588579478 | G48: 0.003470814035 | H48: 0.000554094322
A49: 2010-06-14 | B49: 5197.700195 | C49: 711.194946 | D49: 0.006596394896 | E49: 0.000554094322 | G49: 0.006596394896 | H49: 0.00849794278
A50: 2010-06-15 | B50: 5222.350098 | C50: 725.248108 | D50: 0.002054757227 | E50: 0.00849794278 | G50: 0.002054757227 | H50: -0.008120622034
A51: 2010-06-16 | B51: 5233.350098 | C51: 711.81311 | D51: 0.0009138060529 | E51: -0.008120622034 | G51: 0.0009138060529 | H51: 0.0009293109665
A52: 2010-06-17 | B52: 5274.850098 | C52: 713.337891 | D52: 0.003430333333 | E52: 0.0009293109665 | G52: 0.003430333333 | H52: -0.001684392413
A53: 2010-06-18 | B53: 5262.600098 | C53: 710.576599 | D53: -0.001009752777 | E53: -0.001684392413 | G53: -0.001009752777 | H53: 0.01023098719
A54: 2010-06-21 | B54: 5353.299805 | C54: 727.514893 | D54: 0.007421196716 | E54: 0.01023098719 | G54: 0.007421196716 | H54: -0.01053332817
A55: 2010-06-22 | B55: 5316.549805 | C55: 710.082092 | D55: -0.002991679528 | E55: -0.01053332817 | G55: -0.002991679528 | H55: 0.004837739305
A56: 2010-06-23 | B56: 5323.149902 | C56: 718.036133 | D56: 0.0005388095818 | E56: 0.004837739305 | G56: 0.0005388095818 | H56: -2.491937504e-05
A57: 2010-06-24 | B57: 5320.600098 | C57: 717.994934 | D57: -0.0002080781357 | E57: -2.491937504e-05 | G57: -0.0002080781357 | H57: -0.004712003782
A58: 2010-06-25 | B58: 5269.049805 | C58: 710.246948 | D58: -0.004228314409 | E58: -0.004712003782 | G58: -0.004228314409 | H58: 0.004712003782
A59: 2010-06-28 | B59: 5333.5 | C59: 717.994934 | D59: 0.005279995723 | E59: 0.004712003782 | G59: 0.005279995723 | H59: -0.001548272104
A60: 2010-06-29 | B60: 5256.149902 | C60: 715.439819 | D60: -0.0063445569 | E60: -0.001548272104 | G60: -0.0063445569 | H60: 0.005024148666
A61: 2010-06-30 | B61: 5312.5 | C61: 723.764465 | D61: 0.004631200532 | E61: 0.005024148666 | G61: 0.004631200532 | H61: -0.005725260165
A62: 2010-07-01 | B62: 5251.399902 | C62: 714.285767 | D62: -0.005023851334 | E62: -0.005725260165 | G62: -0.005023851334 | H62: -0.001782825201
A63: 2010-07-02 | B63: 5237.100098 | C63: 711.359558 | D63: -0.001184216965 | E63: -0.001782825201 | G63: -0.001184216965 | H63: -7.538906406e-05
A64: 2010-07-05 | B64: 5235.899902 | C64: 711.236084 | D64: -9.953948291e-05 | E64: -7.538906406e-05 | G64: -9.953948291e-05 | H64: -0.003562867547
A65: 2010-07-06 | B65: 5289.049805 | C65: 705.42511 | D65: 0.00438632135 | E65: -0.003562867547 | G65: 0.00438632135 | H65: -0.0009397081172
A66: 2010-07-07 | B66: 5241.100098 | C66: 703.900391 | D66: -0.003955202401 | E66: -0.0009397081172 | G66: -0.003955202401 | H66: -0.005759232349
A67: 2010-07-08 | B67: 5296.850098 | C67: 694.627502 | D67: 0.004595228257 | E67: -0.005759232349 | G67: 0.004595228257 | H67: -0.005262200311
A68: 2010-07-09 | B68: 5352.450195 | C68: 686.261719 | D68: =LOG(B68)-LOG(B67) -> 0.004534952357 | E68: -0.005262200311 | G68: =D68 -> 0.004534952357 | H68: =E69 -> -0.003509015759
A69: 2010-07-12 | B69: 5383 | C69: 680.739197 | D69: 0.002471744977 | E69: -0.003509015759 | G69: 0.002471744977 | H69: -0.003219495298
A70: 2010-07-13 | B70: 5400.649902 | C70: 675.711426 | D70: 0.001421645168 | E70: -0.003219495298 | G70: 0.001421645168 | H70: -0.007669358358
A71: 2010-07-14 | B71: 5386.149902 | C71: 663.883545 | D71: -0.001167588885 | E71: -0.007669358358 | G71: -0.001167588885 | H71: 0.002151467456
A72: 2010-07-15 | B72: 5378.75 | C72: 667.180542 | D72: -0.0005970770078 | E72: 0.002151467456 | G72: -0.0005970770078 | H72: 0.002487641922
A73: 2010-07-16 | B73: 5393.899902 | C73: 671.013123 | D73: 0.001221523625 | E73: 0.002487641922 | G73: 0.001221523625 | H73: -0.001228669381
A74: 2010-07-19 | B74: 5386.450195 | C74: 669.117432 | D74: -0.0006002341534 | E74: -0.001228669381 | G74: -0.0006002341534 | H74: -0.0009640758039
A75: 2010-07-20 | B75: 5368 | C75: 667.633728 | D75: -0.001490141401 | E75: -0.0009640758039 | G75: -0.001490141401 | H75: 0.007863627186
A76: 2010-07-21 | B76: 5399.350098 | C76: 679.832458 | D76: 0.00252898121 | E76: 0.007863627186 | G76: 0.00252898121 | H76: -0.004578529336
A77: 2010-07-22 | B77: 5441.950195 | C77: 672.703003 | D77: 0.003413074406 | E77: -0.004578529336 | G77: 0.003413074406 | H77: 0.002017287698
A78: 2010-07-23 | B78: 5449.100098 | C78: 675.834961 | D78: 0.000570223033 | E78: 0.002017287698 | G78: 0.000570223033 | H78: 0.002166201911
A79: 2010-07-26 | B79: 5418.600098 | C79: 679.214355 | D79: -0.002437685294 | E79: 0.002166201911 | G79: -0.002437685294 | H79: 0.01267273641
A80: 2010-07-27 | B80: 5430.600098 | C80: 699.325867 | D80: 0.0009607225996 | E80: 0.01267273641 | G80: 0.0009607225996 | H80: 0.001138015003
A81: 2010-07-28 | B81: 5397.549805 | C81: 701.160767 | D81: -0.00265116471 | E81: 0.001138015003 | G81: -0.00265116471 | H81: 0.0001291596601
A82: 2010-07-29 | B82: 5408.899902 | C82: 701.369324 | D82: 0.0009122859852 | E82: 0.0001291596601 | G82: 0.0009122859852 | H82: -0.005143349145
A83: 2010-07-30 | B83: 5367.600098 | C83: 693.112 | D83: -0.003328792241 | E83: -0.005143349145 | G83: -0.003328792241 | H83: 0.001747166731
A84: 2010-08-02 | B84: 5431.649902 | C84: 695.906006 | D84: 0.005151617494 | E84: 0.001747166731 | G84: 0.005151617494 | H84: -0.002584096914
A85: 2010-08-03 | B85: 5439.549805 | C85: 691.777588 | D85: 0.0006311879051 | E85: -0.002584096914 | G85: 0.0006311879051 | H85: -0.0046590664
A86: 2010-08-04 | B86: 5467.850098 | C86: 684.395935 | D86: 0.002253642257 | E86: -0.0046590664 | G86: 0.002253642257 | H86: -0.002947403303
A87: 2010-08-05 | B87: 5447.100098 | C87: 679.766907 | D87: -0.001651243697 | E87: -0.002947403303 | G87: -0.001651243697 | H87: 0.006794067499
A88: 2010-08-06 | B88: 5439.25 | C88: 690.484741 | D88: -0.0006263356964 | E88: 0.006794067499 | G88: -0.0006263356964 | H88: 0.008699444124
A89: 2010-08-09 | B89: 5486.149902 | C89: 704.455444 | D89: 0.003728649558 | E89: 0.008699444124 | G89: 0.003728649558 | H89: 0.001437378434
A90: 2010-08-10 | B90: 5460.700195 | C90: 706.790833 | D90: -0.002019336545 | E90: 0.001437378434 | G90: -0.002019336545 | H90: -0.002595944993
A91: 2010-08-11 | B91: 5420.600098 | C91: 702.578674 | D91: -0.003200964815 | E91: -0.002595944993 | G91: -0.003200964815 | H91: -0.001316756447
A92: 2010-08-12 | B92: 5416.450195 | C92: 700.451721 | D92: -0.0003326145054 | E92: -0.001316756447 | G92: -0.0003326145054 | H92: 0.002166701762
A93: 2010-08-13 | B93: 5452.100098 | C93: 703.955017 | D93: 0.002849066575 | E93: 0.002166701762 | G93: 0.002849066575 | H93: -0.005306623598
A94: 2010-08-16 | B94: 5418.299805 | C94: 695.405762 | D94: -0.002700788964 | E94: -0.005306623598 | G94: -0.002700788964 | H94: 0.001845237398
A95: 2010-08-17 | B95: 5414.149902 | C95: 698.366699 | D95: -0.0003327557681 | E95: 0.001845237398 | G95: -0.0003327557681 | H95: 0.001449888774
A96: 2010-08-18 | B96: 5479.149902 | C96: 700.702087 | D96: 0.00518290635 | E96: 0.001449888774 | G96: 0.00518290635 | H96: 0.02180184439
A97: 2010-08-19 | B97: 5540.200195 | C97: 736.775635 | D97: 0.004812275936 | E97: 0.02180184439 | G97: 0.004812275936 | H97: -0.006089748841
A98: 2010-08-20 | B98: 5530.649902 | C98: 726.516541 | D98: -0.0007492903513 | E98: -0.006089748841 | G98: -0.0007492903513 | H98: 0.001865643487
A99: 2010-08-23 | B99: 5543.5 | C99: 729.644226 | D99: 0.001007883983 | E99: 0.001865643487 | G99: 0.001007883983 | H99: -0.004491171335
A100: 2010-08-24 | B100: 5505.100098 | C100: 722.137634 | D100: -0.003018831806 | E100: -0.004491171335 | G100: -0.003018831806 | H100: 0.001552298812
A101: 2010-08-25 | B101: 5462.350098 | C101: 724.723389 | D101: -0.003385688159 | E101: 0.001552298812 | G101: -0.003385688159 | H101: -0.000350060717
A102: 2010-08-26 | B102: 5477.899902 | C102: 724.139465 | D102: 0.001234560201 | E102: -0.000350060717 | G102: 0.001234560201 | H102: 0.001946466471
A103: 2010-08-27 | B103: 5408.700195 | C103: 727.392273 | D103: -0.005521182995 | E103: 0.001946466471 | G103: -0.005521182995 | H103: 0.001714679071
A104: 2010-08-30 | B104: 5415.450195 | C104: 730.269836 | D104: 0.0005416569481 | E104: 0.001714679071 | G104: 0.0005416569481 | H104: -0.002587088651
A105: 2010-08-31 | B105: 5402.399902 | C105: 725.932556 | D105: -0.00104783722 | E105: -0.002587088651 | G105: -0.00104783722 | H105: 0.007421023051
A106: 2010-09-01 | B106: 5471.850098 | C106: 738.443542 | D106: 0.005547462491 | E106: 0.007421023051 | G106: 0.005547462491 | H106: 0.004974951738
A107: 2010-09-02 | B107: 5486.149902 | C107: 746.951233 | D107: 0.001133478645 | E107: 0.004974951738 | G107: 0.001133478645 | H107: 0.0005330810264
A108: 2010-09-03 | B108: 5479.399902 | C108: 747.868652 | D108: -0.0005346723467 | E108: 0.0005330810264 | G108: -0.0005346723467 | H108: 0.003040784402
A109: 2010-09-06 | B109: 5576.950195 | C109: 753.123352 | D109: 0.007663768416 | E109: 0.003040784402 | G109: 0.007663768416 | H109: 0.02748877666
A110: 2010-09-07 | B110: 5604 | C110: 802.333435 | D110: 0.002101360575 | E110: 0.02748877666 | G110: 0.002101360575 | H110: 0.01394977962
A111: 2010-09-08 | B111: 5607.850098 | C111: 828.523193 | D111: 0.0002982694858 | E111: 0.01394977962 | G111: 0.0002982694858 | H111: -0.005477489668
A112: 2010-09-09 | B112: 5640.049805 | C112: 818.13916 | D112: 0.00248654298 | E112: -0.005477489668 | G112: 0.00248654298 | H112: 0.004207771065
A113: 2010-09-13 | B113: 5760 | C113: 826.104431 | D113: 0.009139544344 | E113: 0.004207771065 | G113: 0.009139544344 | H113: -0.00903849705
A114: 2010-09-14 | B114: 5795.549805 | C114: 809.089294 | D114: 0.002672158939 | E114: -0.00903849705 | G114: 0.002672158939 | H114: -0.004341965679
A115: 2010-09-15 | B115: 5860.950195 | C115: 801.040527 | D115: 0.004873388501 | E115: -0.004341965679 | G115: 0.004873388501 | H115: 0.002390191989
A116: 2010-09-16 | B116: 5828.700195 | C116: 805.461304 | D116: -0.002396313338 | E116: 0.002390191989 | G116: -0.002396313338 | H116: 0.01422300921
A117: 2010-09-17 | B117: 5884.950195 | C117: 832.276611 | D117: 0.004171074187 | E117: 0.01422300921 | G117: 0.004171074187 | H117: 0.01000296595
A118: 2010-09-20 | B118: 5980.450195 | C118: 851.66864 | D118: 0.006991086231 | E118: 0.01000296595 | G118: 0.006991086231 | H118: -0.001960835882
A119: 2010-09-21 | B119: 6009.049805 | C119: 847.832031 | D119: 0.002071925663 | E119: -0.001960835882 | G119: 0.002071925663 | H119: -0.004509442771
A120: 2010-09-22 | B120: 5991 | C120: 839.074219 | D120: -0.001306484015 | E120: -0.004509442771 | G120: -0.001306484015 | H120: -0.0003454278442
A121: 2010-09-23 | B121: 5959.549805 | C121: 838.407104 | D121: -0.002285865989 | E121: -0.0003454278442 | G121: -0.002285865989 | H121: 0.004042291105
A122: 2010-09-24 | B122: 6018.299805 | C122: 846.247192 | D122: 0.004260364966 | E122: 0.004042291105 | G122: 0.004260364966 | H122: -0.0008140081187
A123: 2010-09-27 | B123: 6035.649902 | C123: 844.662537 | D123: 0.001250222006 | E123: -0.0008140081187 | G123: 0.001250222006 | H123: 0.003672507801
A124: 2010-09-28 | B124: 6029.5 | C124: 851.83551 | D124: -0.0004427410775 | E124: 0.003672507801 | G124: -0.0004427410775 | H124: -0.006922479969
A125: 2010-09-29 | B125: 5991.299805 | C125: 838.365234 | D125: -0.00276024724 | E125: -0.006922479969 | G125: -0.00276024724 | H125: -0.006661533996
A126: 2010-09-30 | B126: 6029.950195 | C126: 825.603882 | D126: 0.002792672799 | E126: -0.006661533996 | G126: 0.002792672799 | H126: 0.006186027436
A127: 2010-10-01 | B127: 6143.399902 | C127: 837.447815 | D127: 0.008095061399 | E127: 0.006186027436 | G127: 0.008095061399 | H127: 0.005287937735
A128: 2010-10-04 | B128: 6159.450195 | C128: 847.706848 | D128: 0.001133161435 | E128: 0.005287937735 | G128: 0.001133161435 | H128: 0.005751792486
A129: 2010-10-05 | B129: 6145.799805 | C129: 859.008545 | D129: -0.0009635385684 | E129: 0.005751792486 | G129: -0.0009635385684 | H129: 0.0005688633698
A130: 2010-10-06 | B130: 6186.450195 | C130: 860.13446 | D130: 0.002863111598 | E130: 0.0005688633698 | G130: 0.002863111598 | H130: -8.423247433e-05
A131: 2010-10-07 | B131: 6120.299805 | C131: 859.967651 | D131: -0.004668824188 | E131: -8.423247433e-05 | G131: -0.004668824188 | H131: -0.005403956352
A132: 2010-10-08 | B132: 6103.450195 | C132: 849.333313 | D132: =LOG(B132)-LOG(B131) -> -0.001197291712 | E132: -0.005403956352 | G132: =D132 -> -0.001197291712 | H132: =E133 -> -0.00136693832
A133: 2010-10-11 | B133: 6135.850098 | C133: 846.664246 | D133: 0.002299336011 | E133: -0.00136693832 | G133: 0.002299336011 | H133: -0.008140564148
A134: 2010-10-12 | B134: 6090.899902 | C134: 830.941895 | D134: -0.003193278677 | E134: -0.008140564148 | G134: -0.003193278677 | H134: 0.01569001012
A135: 2010-10-13 | B135: 6233.899902 | C135: 861.510681 | D135: 0.01007836216 | E135: 0.01569001012 | G135: 0.01007836216 | H135: -0.005734945272
A136: 2010-10-14 | B136: 6177.350098 | C136: 850.209045 | D136: -0.00395760907 | E136: -0.005734945272 | G136: -0.00395760907 | H136: -0.009976821354
A137: 2010-10-15 | B137: 6062.649902 | C137: 830.900269 | D137: -0.008139725554 | E137: -0.009976821354 | G137: -0.008139725554 | H137: -0.01144047912
A138: 2010-10-18 | B138: 6075.950195 | C138: 809.297913 | D138: 0.0009517153746 | E138: -0.01144047912 | G138: 0.0009517153746 | H138: 0.002677212216
A139: 2010-10-19 | B139: 6027.299805 | C139: 814.302246 | D139: -0.003491410937 | E139: 0.002677212216 | G139: -0.003491410937 | H139: -0.003013031645
A140: 2010-10-20 | B140: 5982.100098 | C140: 808.672363 | D140: -0.003269118554 | E140: -0.003013031645 | G140: -0.003269118554 | H140: 0.00485521271
A141: 2010-10-21 | B141: 6101.5 | C141: 817.763672 | D141: 0.008582939837 | E141: 0.00485521271 | G141: 0.008582939837 | H141: 0.001371032534
A142: 2010-10-22 | B142: 6066.049805 | C142: 820.349365 | D142: -0.002530643865 | E142: 0.001371032534 | G142: -0.002530643865 | H142: 0.01773679607
A143: 2010-10-25 | B143: 6105.799805 | C143: 854.546387 | D143: 0.002836588946 | E143: 0.01773679607 | G143: 0.002836588946 | H143: -0.004538049406
A144: 2010-10-26 | B144: 6082 | C144: 845.663513 | D144: -0.00169614488 | E144: -0.004538049406 | G144: -0.00169614488 | H144: -0.009833970126
A145: 2010-10-27 | B145: 6012.649902 | C145: 826.729858 | D145: -0.00498049885 | E145: -0.009833970126 | G145: -0.00498049885 | H145: -0.002967551099
A146: 2010-10-28 | B146: 5987.700195 | C146: 821.100037 | D146: -0.001805869929 | E146: -0.002967551099 | G146: -0.001805869929 | H146: 0.0003968619226
A147: 2010-10-29 | B147: 6017.700195 | C147: 821.850708 | D147: 0.002170500134 | E147: 0.0003968619226 | G147: 0.002170500134 | H147: 0.0124046593
A148: 2010-11-01 | B148: 6117.549805 | C148: 845.663513 | D148: 0.007146966611 | E148: 0.0124046593 | G148: 0.007146966611 | H148: 0.02006798769
A149: 2010-11-02 | B149: 6119 | C149: 885.657043 | D149: 0.0001029394231 | E149: 0.02006798769 | G149: 0.0001029394231 | H149: 0.008665510344
A150: 2010-11-03 | B150: 6160.5 | C150: 903.506104 | D150: 0.002935508713 | E150: 0.008665510344 | G150: 0.002935508713 | H150: 0.002059840933
A151: 2010-11-04 | B151: 6281.799805 | C151: 907.801575 | D151: 0.008468129821 | E151: 0.002059840933 | G151: 0.008468129821 | H151: 0.01085618144
A152: 2010-11-08 | B152: 6273.200195 | C152: 930.780151 | D152: -0.000594944445 | E152: 0.01085618144 | G152: -0.000594944445 | H152: 0.002328755435
A153: 2010-11-09 | B153: 6301.549805 | C153: 935.784546 | D153: 0.001958225817 | E153: 0.002328755435 | G153: 0.001958225817 | H153: -0.005806139107
A154: 2010-11-10 | B154: 6275.700195 | C154: 923.357178 | D154: -0.001785184963 | E154: -0.005806139107 | G154: -0.001785184963 | H154: -0.00684037446
A155: 2010-11-11 | B155: 6194.25 | C155: 908.927734 | D155: -0.005673458634 | E155: -0.00684037446 | G155: -0.005673458634 | H155: -0.004204857736
A156: 2010-11-12 | B156: 6071.649902 | C156: 900.169922 | D156: -0.008682007792 | E156: -0.004204857736 | G156: -0.008682007792 | H156: -0.005874458799
A157: 2010-11-15 | B157: 6121.600098 | C157: 888.075806 | D157: 0.003558233587 | E157: -0.005874458799 | G157: 0.003558233587 | H157: -0.007778216151
A158: 2010-11-16 | B158: 5988.700195 | C158: 872.311951 | D158: -0.009532383227 | E158: -0.007778216151 | G158: -0.009532383227 | H158: -0.001726724149
A159: 2010-11-18 | B159: 5998.799805 | C159: 868.850586 | D159: 0.0007317966098 | E159: -0.001726724149 | G159: 0.0007317966098 | H159: -0.009568492878
A160: 2010-11-19 | B160: 5890.299805 | C160: 849.917175 | D160: -0.007926968574 | E160: -0.009568492878 | G160: -0.007926968574 | H160: 0.003142398548
A161: 2010-11-22 | B161: 6010 | C161: 856.089172 | D161: 0.008737071894 | E161: 0.003142398548 | G161: 0.008737071894 | H161: -0.008459689023
A162: 2010-11-23 | B162: 5934.75 | C162: 839.574646 | D162: -0.005472042884 | E162: -0.008459689023 | G162: -0.005472042884 | H162: -0.00470656069
A163: 2010-11-24 | B163: 5865.75 | C163: 830.525085 | D163: -0.00507887984 | E163: -0.00470656069 | G163: -0.00507887984 | H163: 0.0066007665
A164: 2010-11-25 | B164: 5799.75 | C164: 843.244507 | D164: -0.00491427571 | E164: 0.0066007665 | G164: -0.00491427571 | H164: -0.003450185235
A165: 2010-11-26 | B165: 5751.950195 | C165: 836.572021 | D165: -0.003594156649 | E165: -0.003450185235 | G165: -0.003594156649 | H165: -0.002344519178
A166: 2010-11-29 | B166: 5830 | C166: 832.067993 | D166: 0.005853437838 | E166: -0.002344519178 | G166: 0.005853437838 | H166: -0.006049606002
A167: 2010-11-30 | B167: 5862.700195 | C167: 820.557861 | D167: 0.002429131173 | E167: -0.006049606002 | G167: 0.002429131173 | H167: 0.006571684242
A168: 2010-12-01 | B168: 5960.899902 | C168: 833.068848 | D168: 0.007214143099 | E168: 0.006571684242 | G168: 0.007214143099 | H168: 0.0004562957968
A169: 2010-12-02 | B169: 6011.700195 | C169: 833.94458 | D169: 0.003685485049 | E169: 0.0004562957968 | G169: 0.003685485049 | H169: -0.008110928763
A170: 2010-12-03 | B170: 5992.799805 | C170: 818.514282 | D170: -0.001367544148 | E170: -0.008110928763 | G170: -0.001367544148 | H170: -0.002418529967
A171: 2010-12-06 | B171: 5992.25 | C171: 813.96875 | D171: -3.984585491e-05 | E171: -0.002418529967 | G171: -3.984585491e-05 | H171: 0.00920265202
A172: 2010-12-07 | B172: 5976.549805 | C172: 831.400696 | D172: -0.00113938107 | E172: 0.00920265202 | G172: -0.00113938107 | H172: 0.005928290004
A173: 2010-12-08 | B173: 5903.700195 | C173: 842.827454 | D173: -0.005326248216 | E173: 0.005928290004 | G173: -0.005326248216 | H173: -0.008813313111
A174: 2010-12-09 | B174: 5766.5 | C174: 825.895996 | D174: -0.01021199843 | E174: -0.008813313111 | G174: -0.01021199843 | H174: 0.03576627227
A175: 2010-12-10 | B175: 5857.350098 | C175: 896.791809 | D175: 0.006788886531 | E175: 0.03576627227 | G175: 0.006788886531 | H175: -0.009969169192
A176: 2010-12-13 | B176: 5907.649902 | C176: 876.440552 | D176: 0.003713567432 | E176: -0.009969169192 | G176: 0.003713567432 | H176: 0.005217352995
A177: 2010-12-14 | B177: 5944.100098 | C177: 887.033081 | D177: 0.002671363959 | E177: 0.005217352995 | G177: 0.002671363959 | H177: 0.0005306672738
A178: 2010-12-15 | B178: 5892.299805 | C178: 888.117615 | D178: -0.003801278297 | E178: 0.0005306672738 | G178: -0.003801278297 | H178: 0.004221148923
A179: 2010-12-16 | B179: 5948.75 | C179: 896.791809 | D179: 0.004140881818 | E179: 0.004221148923 | G179: 0.004140881818 | H179: 0.005498801511
A180: 2010-12-20 | B180: 5947.049805 | C180: 908.218689 | D180: -0.0001241421886 | E180: 0.005498801511 | G180: -0.0001241421886 | H180: -0.004188058724
A181: 2010-12-21 | B181: 6000.649902 | C181: 899.502502 | D181: 0.003896713693 | E181: -0.004188058724 | G181: 0.003896713693 | H181: 0.0005232858729
A182: 2010-12-22 | B182: 5984.399902 | C182: 900.586975 | D182: -0.001177682158 | E182: 0.0005232858729 | G182: -0.001177682158 | H182: -0.002480733229
A183: 2010-12-23 | B183: 5980 | C183: 895.457397 | D183: -0.0003194231656 | E183: -0.002480733229 | G183: -0.0003194231656 | H183: 0.0005860772525
A184: 2010-12-24 | B184: 6011.600098 | C184: 896.666626 | D184: 0.00228889887 | E184: 0.0005860772525 | G184: 0.00228889887 | H184: 0.002517606113
A185: 2010-12-27 | B185: 5998.100098 | C185: 901.8797 | D185: -0.0009763737445 | E185: 0.002517606113 | G185: -0.0009763737445 | H185: 0.002403173098
A186: 2010-12-28 | B186: 5996 | C186: 906.884094 | D186: -0.0001520849375 | E186: 0.002403173098 | G186: -0.0001520849375 | H186: -0.001600568364
A187: 2010-12-29 | B187: 6060.350098 | C187: 903.547974 | D187: 0.004636089303 | E187: -0.001600568364 | G187: 0.004636089303 | H187: -0.002775075515
A188: 2010-12-30 | B188: 6101.850098 | C188: 897.792847 | D188: 0.002963820799 | E188: -0.002775075515 | G188: 0.002963820799 | H188: -0.0003228568492
A189: 2010-12-31 | B189: 6134.5 | C189: 897.125671 | D189: 0.002317636519 | E189: -0.0003228568492 | G189: 0.002317636519 | H189: -0.0004848384885
A190: 2011-01-03 | B190: 6157.600098 | C190: 896.124695 | D190: 0.001632309666 | E190: -0.0004848384885 | G190: 0.001632309666 | H190: -0.0004247378072
A191: 2011-01-04 | B191: 6146.350098 | C191: 895.248718 | D191: -0.0007941862906 | E191: -0.0004247378072 | G191: -0.0007941862906 | H191: -0.003636425351
A192: 2011-01-05 | B192: 6079.799805 | C192: 887.783936 | D192: -0.004728015067 | E192: -0.003636425351 | G192: -0.004728015067 | H192: -0.01742031296
A193: 2011-01-06 | B193: 6048.25 | C193: 852.878113 | D193: -0.002259544996 | E193: -0.01742031296 | G193: -0.002259544996 | H193: -0.00868687505
A194: 2011-01-07 | B194: 5904.600098 | C194: 835.988098 | D194: -0.01043924471 | E194: -0.00868687505 | G194: -0.01043924471 | H194: 0.005938767957
A195: 2011-01-10 | B195: 5762.850098 | C195: 847.498352 | D195: -0.01055316644 | E195: 0.005938767957 | G195: -0.01055316644 | H195: 0.005542212724
A196: 2011-01-11 | B196: 5754.100098 | C196: 858.382935 | D196: =LOG(B196)-LOG(B195) -> -0.0006599103726 | E196: 0.005542212724 | G196: =D196 -> -0.0006599103726 | H196: =E197 -> -0.0003377473282
A197: 2011-01-12 | B197: 5863.25 | C197: 857.715637 | D197: 0.008160999649 | E197: -0.0003377473282 | G197: 0.008160999649 | H197: 0.004098280196
A198: 2011-01-13 | B198: 5751.899902 | C198: 865.8479 | D198: -0.008327092643 | E198: 0.004098280196 | G198: -0.008327092643 | H198: -0.01454874641
A199: 2011-01-14 | B199: 5654.549805 | C199: 837.322693 | D199: -0.007413285922 | E199: -0.01454874641 | G199: -0.007413285922 | H199: 0.002265322135
A200: 2011-01-17 | B200: 5654.75 | C200: 841.70166 | D200: 1.537559094e-05 | E200: 0.002265322135 | G200: 1.537559094e-05 | H200: 0.008522891403
... 2265 more rows

Sheet Data_Nifty_ACC
A1: Date | B1: NIFTY | C1: ACC | D1: Ret NSEI | E1: Ret ACC
A2: 2010-04-07 | B2: 5374.649902 | C2: 804.82843
A3: 2010-04-08 | B3: 5304.450195 | C3: 795.226013 | D3: =LOG(B3)-LOG(B2) -> -0.005709804057 | E3: =LOG(C3)-LOG(C2) -> -0.005212731105
A4: 2010-04-09 | B4: 5361.75 | C4: 787.725586 | D4: =LOG(B4)-LOG(B3) -> 0.004666184407 | E4: =LOG(C4)-LOG(C3) -> -0.004115626072
A5: 2010-04-12 | B5: 5339.700195 | C5: 784.552185 | D5: -0.001789686821 | E5: -0.00175311569
A6: 2010-04-13 | B6: 5322.950195 | C6: 775.32074 | D6: -0.001364470988 | E6: -0.005140434667
A7: 2010-04-15 | B7: 5273.600098 | C7: 774.125427 | D7: -0.004045208897 | E7: -0.0006700690274
A8: 2010-04-16 | B8: 5262.600098 | C8: 768.932739 | D8: -0.0009068242721 | E8: -0.002922980231
A9: 2010-04-19 | B9: 5203.649902 | C9: 758.629883 | D9: -0.004892299642 | E9: -0.00585840645
A10: 2010-04-20 | B10: 5230.100098 | C10: 760.237122 | D10: 0.002201930998 | E10: 0.000919126279
A11: 2010-04-21 | B11: 5244.899902 | C11: 767.77887 | D11: 0.001227203339 | E11: 0.004287083583
A12: 2010-04-22 | B12: 5269.350098 | C12: 758.052917 | D12: 0.002019850079 | E12: -0.005536632495
A13: 2010-04-23 | B13: 5304.100098 | C13: 744.864929 | D13: 0.002854657147 | E13: -0.007621996693
A14: 2010-04-26 | B14: 5322.450195 | C14: 750.181458 | D14: 0.001499894805 | E14: 0.003088799064
A15: 2010-04-27 | B15: 5308.350098 | C15: 742.969238 | D15: -0.001152048339 | E15: -0.004195493082
A16: 2010-04-28 | B16: 5215.450195 | C16: 748.450562 | D16: -0.007667755407 | E16: 0.003192286283
A17: 2010-04-29 | B17: 5254.149902 | C17: 737.941406 | D17: 0.003210656681 | E17: -0.006141239472
A18: 2010-04-30 | B18: 5278 | C18: 745.977783 | D18: 0.001966926744 | E18: 0.004704013983
A19: 2010-05-03 | B19: 5222.75 | C19: 744.864929 | D19: -0.004570148142 | E19: -0.0006483667757
A20: 2010-05-04 | B20: 5148.5 | C20: 723.846985 | D20: -0.006218520664 | E20: -0.01243075677
A21: 2010-05-05 | B21: 5124.899902 | C21: 729.699036 | D21: -0.001995329776 | E21: 0.003497002713
A22: 2010-05-06 | B22: 5090.850098 | C22: 722.280762 | D22: -0.002895078041 | E22: -0.00443772496
A23: 2010-05-07 | B23: 5018.049805 | C23: 709.958435 | D23: -0.006255341814 | E23: -0.007473124152
A24: 2010-05-10 | B24: 5193.600098 | C24: 735.01532 | D24: 0.01493353889 | E24: 0.01506346783
A25: 2010-05-11 | B25: 5136.149902 | C25: 730.564453 | D25: -0.004830815918 | E25: -0.002637854255
A26: 2010-05-12 | B26: 5156.649902 | C26: 723.022705 | D26: 0.001729956634 | E26: -0.004506601359
A27: 2010-05-13 | B27: 5178.899902 | C27: 734.685669 | D27: 0.001869869979 | E27: 0.006949632839
A28: 2010-05-14 | B28: 5093.5 | C28: 735.880859 | D28: -0.007221206542 | E28: 0.0007059381894
A29: 2010-05-17 | B29: 5059.899902 | C29: 714.285767 | D29: -0.002874385046 | E29: -0.01293551026
A30: 2010-05-18 | B30: 5066.200195 | C30: 710.288147 | D30: 0.0005404218428 | E30: -0.00243742897
A31: 2010-05-19 | B31: 4919.649902 | C31: 694.503967 | D31: -0.01274814921 | E31: -0.009759836636
A32: 2010-05-20 | B32: 4947.600098 | C32: 695.699158 | D32: 0.002460391367 | E32: 0.0007467469676
A33: 2010-05-21 | B33: 4931.149902 | C33: 711.359558 | D33: -0.001446384604 | E33: 0.009667693438
A34: 2010-05-24 | B34: 4943.950195 | C34: 704.848206 | D34: 0.001125882204 | E34: -0.003993572471
A35: 2010-05-25 | B35: 4806.75 | C35: 693.679749 | D35: -0.01222255208 | E35: -0.00693658263
A36: 2010-05-26 | B36: 4917.399902 | C36: 684.200989 | D36: 0.009883993259 | E36: -0.005975318457
A37: 2010-05-27 | B37: 5003.100098 | C37: 674.474915 | D37: 0.00750366375 | E37: -0.006217895541
A38: 2010-05-28 | B38: 5066.549805 | C38: 680.862732 | D38: 0.005473124208 | E38: 0.004093761023
A39: 2010-05-31 | B39: 5086.299805 | C39: 674.680969 | D39: 0.001689639297 | E39: -0.003961103089
A40: 2010-06-01 | B40: 4970.200195 | C40: 673.980591 | D40: -0.01002807343 | E40: -0.0004510699156
A41: 2010-06-02 | B41: 5019.850098 | C41: 681.481018 | D41: 0.004316866443 | E41: 0.004806373391
A42: 2010-06-03 | B42: 5110.5 | C42: 693.59729 | D42: 0.007772644121 | E42: 0.007653624128
A43: 2010-06-04 | B43: 5135.5 | C43: 693.927063 | D43: 0.002119340932 | E43: 0.0002064375974
A44: 2010-06-07 | B44: 5034 | C44: 702.004517 | D44: -0.008669522343 | E44: 0.005026081369
A45: 2010-06-08 | B45: 4987.100098 | C45: 694.297913 | D45: -0.004065126015 | E45: -0.00479404677
A46: 2010-06-09 | B46: 5000.299805 | C46: 707.238525 | D46: 0.00114795909 | E46: 0.008020049918
A47: 2010-06-10 | B47: 5078.600098 | C47: 716.18158 | D47: 0.006747972427 | E47: 0.005457237156
A48: 2010-06-11 | B48: 5119.350098 | C48: 710.288147 | D48: 0.003470814035 | E48: -0.003588579478
A49: 2010-06-14 | B49: 5197.700195 | C49: 711.194946 | D49: 0.006596394896 | E49: 0.000554094322
A50: 2010-06-15 | B50: 5222.350098 | C50: 725.248108 | D50: 0.002054757227 | E50: 0.00849794278
A51: 2010-06-16 | B51: 5233.350098 | C51: 711.81311 | D51: 0.0009138060529 | E51: -0.008120622034
A52: 2010-06-17 | B52: 5274.850098 | C52: 713.337891 | D52: 0.003430333333 | E52: 0.0009293109665
A53: 2010-06-18 | B53: 5262.600098 | C53: 710.576599 | D53: -0.001009752777 | E53: -0.001684392413
A54: 2010-06-21 | B54: 5353.299805 | C54: 727.514893 | D54: 0.007421196716 | E54: 0.01023098719
A55: 2010-06-22 | B55: 5316.549805 | C55: 710.082092 | D55: -0.002991679528 | E55: -0.01053332817
A56: 2010-06-23 | B56: 5323.149902 | C56: 718.036133 | D56: 0.0005388095818 | E56: 0.004837739305
A57: 2010-06-24 | B57: 5320.600098 | C57: 717.994934 | D57: -0.0002080781357 | E57: -2.491937504e-05
A58: 2010-06-25 | B58: 5269.049805 | C58: 710.246948 | D58: -0.004228314409 | E58: -0.004712003782
A59: 2010-06-28 | B59: 5333.5 | C59: 717.994934 | D59: 0.005279995723 | E59: 0.004712003782
A60: 2010-06-29 | B60: 5256.149902 | C60: 715.439819 | D60: -0.0063445569 | E60: -0.001548272104
A61: 2010-06-30 | B61: 5312.5 | C61: 723.764465 | D61: 0.004631200532 | E61: 0.005024148666
A62: 2010-07-01 | B62: 5251.399902 | C62: 714.285767 | D62: -0.005023851334 | E62: -0.005725260165
A63: 2010-07-02 | B63: 5237.100098 | C63: 711.359558 | D63: -0.001184216965 | E63: -0.001782825201
A64: 2010-07-05 | B64: 5235.899902 | C64: 711.236084 | D64: -9.953948291e-05 | E64: -7.538906406e-05
A65: 2010-07-06 | B65: 5289.049805 | C65: 705.42511 | D65: 0.00438632135 | E65: -0.003562867547
A66: 2010-07-07 | B66: 5241.100098 | C66: 703.900391 | D66: -0.003955202401 | E66: -0.0009397081172
A67: 2010-07-08 | B67: 5296.850098 | C67: 694.627502 | D67: 0.004595228257 | E67: -0.005759232349
A68: 2010-07-09 | B68: 5352.450195 | C68: 686.261719 | D68: =LOG(B68)-LOG(B67) -> 0.004534952357 | E68: =LOG(C68)-LOG(C67) -> -0.005262200311
A69: 2010-07-12 | B69: 5383 | C69: 680.739197 | D69: 0.002471744977 | E69: -0.003509015759
A70: 2010-07-13 | B70: 5400.649902 | C70: 675.711426 | D70: 0.001421645168 | E70: -0.003219495298
A71: 2010-07-14 | B71: 5386.149902 | C71: 663.883545 | D71: -0.001167588885 | E71: -0.007669358358
A72: 2010-07-15 | B72: 5378.75 | C72: 667.180542 | D72: -0.0005970770078 | E72: 0.002151467456
A73: 2010-07-16 | B73: 5393.899902 | C73: 671.013123 | D73: 0.001221523625 | E73: 0.002487641922
A74: 2010-07-19 | B74: 5386.450195 | C74: 669.117432 | D74: -0.0006002341534 | E74: -0.001228669381
A75: 2010-07-20 | B75: 5368 | C75: 667.633728 | D75: -0.001490141401 | E75: -0.0009640758039
A76: 2010-07-21 | B76: 5399.350098 | C76: 679.832458 | D76: 0.00252898121 | E76: 0.007863627186
A77: 2010-07-22 | B77: 5441.950195 | C77: 672.703003 | D77: 0.003413074406 | E77: -0.004578529336
A78: 2010-07-23 | B78: 5449.100098 | C78: 675.834961 | D78: 0.000570223033 | E78: 0.002017287698
A79: 2010-07-26 | B79: 5418.600098 | C79: 679.214355 | D79: -0.002437685294 | E79: 0.002166201911
A80: 2010-07-27 | B80: 5430.600098 | C80: 699.325867 | D80: 0.0009607225996 | E80: 0.01267273641
A81: 2010-07-28 | B81: 5397.549805 | C81: 701.160767 | D81: -0.00265116471 | E81: 0.001138015003
A82: 2010-07-29 | B82: 5408.899902 | C82: 701.369324 | D82: 0.0009122859852 | E82: 0.0001291596601
A83: 2010-07-30 | B83: 5367.600098 | C83: 693.112 | D83: -0.003328792241 | E83: -0.005143349145
A84: 2010-08-02 | B84: 5431.649902 | C84: 695.906006 | D84: 0.005151617494 | E84: 0.001747166731
A85: 2010-08-03 | B85: 5439.549805 | C85: 691.777588 | D85: 0.0006311879051 | E85: -0.002584096914
A86: 2010-08-04 | B86: 5467.850098 | C86: 684.395935 | D86: 0.002253642257 | E86: -0.0046590664
A87: 2010-08-05 | B87: 5447.100098 | C87: 679.766907 | D87: -0.001651243697 | E87: -0.002947403303
A88: 2010-08-06 | B88: 5439.25 | C88: 690.484741 | D88: -0.0006263356964 | E88: 0.006794067499
A89: 2010-08-09 | B89: 5486.149902 | C89: 704.455444 | D89: 0.003728649558 | E89: 0.008699444124
A90: 2010-08-10 | B90: 5460.700195 | C90: 706.790833 | D90: -0.002019336545 | E90: 0.001437378434
A91: 2010-08-11 | B91: 5420.600098 | C91: 702.578674 | D91: -0.003200964815 | E91: -0.002595944993
A92: 2010-08-12 | B92: 5416.450195 | C92: 700.451721 | D92: -0.0003326145054 | E92: -0.001316756447
A93: 2010-08-13 | B93: 5452.100098 | C93: 703.955017 | D93: 0.002849066575 | E93: 0.002166701762
A94: 2010-08-16 | B94: 5418.299805 | C94: 695.405762 | D94: -0.002700788964 | E94: -0.005306623598
A95: 2010-08-17 | B95: 5414.149902 | C95: 698.366699 | D95: -0.0003327557681 | E95: 0.001845237398
A96: 2010-08-18 | B96: 5479.149902 | C96: 700.702087 | D96: 0.00518290635 | E96: 0.001449888774
A97: 2010-08-19 | B97: 5540.200195 | C97: 736.775635 | D97: 0.004812275936 | E97: 0.02180184439
A98: 2010-08-20 | B98: 5530.649902 | C98: 726.516541 | D98: -0.0007492903513 | E98: -0.006089748841
A99: 2010-08-23 | B99: 5543.5 | C99: 729.644226 | D99: 0.001007883983 | E99: 0.001865643487
A100: 2010-08-24 | B100: 5505.100098 | C100: 722.137634 | D100: -0.003018831806 | E100: -0.004491171335
A101: 2010-08-25 | B101: 5462.350098 | C101: 724.723389 | D101: -0.003385688159 | E101: 0.001552298812
A102: 2010-08-26 | B102: 5477.899902 | C102: 724.139465 | D102: 0.001234560201 | E102: -0.000350060717
A103: 2010-08-27 | B103: 5408.700195 | C103: 727.392273 | D103: -0.005521182995 | E103: 0.001946466471
A104: 2010-08-30 | B104: 5415.450195 | C104: 730.269836 | D104: 0.0005416569481 | E104: 0.001714679071
A105: 2010-08-31 | B105: 5402.399902 | C105: 725.932556 | D105: -0.00104783722 | E105: -0.002587088651
A106: 2010-09-01 | B106: 5471.850098 | C106: 738.443542 | D106: 0.005547462491 | E106: 0.007421023051
A107: 2010-09-02 | B107: 5486.149902 | C107: 746.951233 | D107: 0.001133478645 | E107: 0.004974951738
A108: 2010-09-03 | B108: 5479.399902 | C108: 747.868652 | D108: -0.0005346723467 | E108: 0.0005330810264
A109: 2010-09-06 | B109: 5576.950195 | C109: 753.123352 | D109: 0.007663768416 | E109: 0.003040784402
A110: 2010-09-07 | B110: 5604 | C110: 802.333435 | D110: 0.002101360575 | E110: 0.02748877666
A111: 2010-09-08 | B111: 5607.850098 | C111: 828.523193 | D111: 0.0002982694858 | E111: 0.01394977962
A112: 2010-09-09 | B112: 5640.049805 | C112: 818.13916 | D112: 0.00248654298 | E112: -0.005477489668
A113: 2010-09-13 | B113: 5760 | C113: 826.104431 | D113: 0.009139544344 | E113: 0.004207771065
A114: 2010-09-14 | B114: 5795.549805 | C114: 809.089294 | D114: 0.002672158939 | E114: -0.00903849705
A115: 2010-09-15 | B115: 5860.950195 | C115: 801.040527 | D115: 0.004873388501 | E115: -0.004341965679
A116: 2010-09-16 | B116: 5828.700195 | C116: 805.461304 | D116: -0.002396313338 | E116: 0.002390191989
A117: 2010-09-17 | B117: 5884.950195 | C117: 832.276611 | D117: 0.004171074187 | E117: 0.01422300921
A118: 2010-09-20 | B118: 5980.450195 | C118: 851.66864 | D118: 0.006991086231 | E118: 0.01000296595
A119: 2010-09-21 | B119: 6009.049805 | C119: 847.832031 | D119: 0.002071925663 | E119: -0.001960835882
A120: 2010-09-22 | B120: 5991 | C120: 839.074219 | D120: -0.001306484015 | E120: -0.004509442771
A121: 2010-09-23 | B121: 5959.549805 | C121: 838.407104 | D121: -0.002285865989 | E121: -0.0003454278442
A122: 2010-09-24 | B122: 6018.299805 | C122: 846.247192 | D122: 0.004260364966 | E122: 0.004042291105
A123: 2010-09-27 | B123: 6035.649902 | C123: 844.662537 | D123: 0.001250222006 | E123: -0.0008140081187
A124: 2010-09-28 | B124: 6029.5 | C124: 851.83551 | D124: -0.0004427410775 | E124: 0.003672507801
A125: 2010-09-29 | B125: 5991.299805 | C125: 838.365234 | D125: -0.00276024724 | E125: -0.006922479969
A126: 2010-09-30 | B126: 6029.950195 | C126: 825.603882 | D126: 0.002792672799 | E126: -0.006661533996
A127: 2010-10-01 | B127: 6143.399902 | C127: 837.447815 | D127: 0.008095061399 | E127: 0.006186027436
A128: 2010-10-04 | B128: 6159.450195 | C128: 847.706848 | D128: 0.001133161435 | E128: 0.005287937735
A129: 2010-10-05 | B129: 6145.799805 | C129: 859.008545 | D129: -0.0009635385684 | E129: 0.005751792486
A130: 2010-10-06 | B130: 6186.450195 | C130: 860.13446 | D130: 0.002863111598 | E130: 0.0005688633698
A131: 2010-10-07 | B131: 6120.299805 | C131: 859.967651 | D131: -0.004668824188 | E131: -8.423247433e-05
A132: 2010-10-08 | B132: 6103.450195 | C132: 849.333313 | D132: =LOG(B132)-LOG(B131) -> -0.001197291712 | E132: =LOG(C132)-LOG(C131) -> -0.005403956352
A133: 2010-10-11 | B133: 6135.850098 | C133: 846.664246 | D133: 0.002299336011 | E133: -0.00136693832
A134: 2010-10-12 | B134: 6090.899902 | C134: 830.941895 | D134: -0.003193278677 | E134: -0.008140564148
A135: 2010-10-13 | B135: 6233.899902 | C135: 861.510681 | D135: 0.01007836216 | E135: 0.01569001012
A136: 2010-10-14 | B136: 6177.350098 | C136: 850.209045 | D136: -0.00395760907 | E136: -0.005734945272
A137: 2010-10-15 | B137: 6062.649902 | C137: 830.900269 | D137: -0.008139725554 | E137: -0.009976821354
A138: 2010-10-18 | B138: 6075.950195 | C138: 809.297913 | D138: 0.0009517153746 | E138: -0.01144047912
A139: 2010-10-19 | B139: 6027.299805 | C139: 814.302246 | D139: -0.003491410937 | E139: 0.002677212216
A140: 2010-10-20 | B140: 5982.100098 | C140: 808.672363 | D140: -0.003269118554 | E140: -0.003013031645
A141: 2010-10-21 | B141: 6101.5 | C141: 817.763672 | D141: 0.008582939837 | E141: 0.00485521271
A142: 2010-10-22 | B142: 6066.049805 | C142: 820.349365 | D142: -0.002530643865 | E142: 0.001371032534
A143: 2010-10-25 | B143: 6105.799805 | C143: 854.546387 | D143: 0.002836588946 | E143: 0.01773679607
A144: 2010-10-26 | B144: 6082 | C144: 845.663513 | D144: -0.00169614488 | E144: -0.004538049406
A145: 2010-10-27 | B145: 6012.649902 | C145: 826.729858 | D145: -0.00498049885 | E145: -0.009833970126
A146: 2010-10-28 | B146: 5987.700195 | C146: 821.100037 | D146: -0.001805869929 | E146: -0.002967551099
A147: 2010-10-29 | B147: 6017.700195 | C147: 821.850708 | D147: 0.002170500134 | E147: 0.0003968619226
A148: 2010-11-01 | B148: 6117.549805 | C148: 845.663513 | D148: 0.007146966611 | E148: 0.0124046593
A149: 2010-11-02 | B149: 6119 | C149: 885.657043 | D149: 0.0001029394231 | E149: 0.02006798769
A150: 2010-11-03 | B150: 6160.5 | C150: 903.506104 | D150: 0.002935508713 | E150: 0.008665510344
A151: 2010-11-04 | B151: 6281.799805 | C151: 907.801575 | D151: 0.008468129821 | E151: 0.002059840933
A152: 2010-11-08 | B152: 6273.200195 | C152: 930.780151 | D152: -0.000594944445 | E152: 0.01085618144
A153: 2010-11-09 | B153: 6301.549805 | C153: 935.784546 | D153: 0.001958225817 | E153: 0.002328755435
A154: 2010-11-10 | B154: 6275.700195 | C154: 923.357178 | D154: -0.001785184963 | E154: -0.005806139107
A155: 2010-11-11 | B155: 6194.25 | C155: 908.927734 | D155: -0.005673458634 | E155: -0.00684037446
A156: 2010-11-12 | B156: 6071.649902 | C156: 900.169922 | D156: -0.008682007792 | E156: -0.004204857736
A157: 2010-11-15 | B157: 6121.600098 | C157: 888.075806 | D157: 0.003558233587 | E157: -0.005874458799
A158: 2010-11-16 | B158: 5988.700195 | C158: 872.311951 | D158: -0.009532383227 | E158: -0.007778216151
A159: 2010-11-18 | B159: 5998.799805 | C159: 868.850586 | D159: 0.0007317966098 | E159: -0.001726724149
A160: 2010-11-19 | B160: 5890.299805 | C160: 849.917175 | D160: -0.007926968574 | E160: -0.009568492878
A161: 2010-11-22 | B161: 6010 | C161: 856.089172 | D161: 0.008737071894 | E161: 0.003142398548
A162: 2010-11-23 | B162: 5934.75 | C162: 839.574646 | D162: -0.005472042884 | E162: -0.008459689023
A163: 2010-11-24 | B163: 5865.75 | C163: 830.525085 | D163: -0.00507887984 | E163: -0.00470656069
A164: 2010-11-25 | B164: 5799.75 | C164: 843.244507 | D164: -0.00491427571 | E164: 0.0066007665
A165: 2010-11-26 | B165: 5751.950195 | C165: 836.572021 | D165: -0.003594156649 | E165: -0.003450185235
A166: 2010-11-29 | B166: 5830 | C166: 832.067993 | D166: 0.005853437838 | E166: -0.002344519178
A167: 2010-11-30 | B167: 5862.700195 | C167: 820.557861 | D167: 0.002429131173 | E167: -0.006049606002
A168: 2010-12-01 | B168: 5960.899902 | C168: 833.068848 | D168: 0.007214143099 | E168: 0.006571684242
A169: 2010-12-02 | B169: 6011.700195 | C169: 833.94458 | D169: 0.003685485049 | E169: 0.0004562957968
A170: 2010-12-03 | B170: 5992.799805 | C170: 818.514282 | D170: -0.001367544148 | E170: -0.008110928763
A171: 2010-12-06 | B171: 5992.25 | C171: 813.96875 | D171: -3.984585491e-05 | E171: -0.002418529967
A172: 2010-12-07 | B172: 5976.549805 | C172: 831.400696 | D172: -0.00113938107 | E172: 0.00920265202
A173: 2010-12-08 | B173: 5903.700195 | C173: 842.827454 | D173: -0.005326248216 | E173: 0.005928290004
A174: 2010-12-09 | B174: 5766.5 | C174: 825.895996 | D174: -0.01021199843 | E174: -0.008813313111
A175: 2010-12-10 | B175: 5857.350098 | C175: 896.791809 | D175: 0.006788886531 | E175: 0.03576627227
A176: 2010-12-13 | B176: 5907.649902 | C176: 876.440552 | D176: 0.003713567432 | E176: -0.009969169192
A177: 2010-12-14 | B177: 5944.100098 | C177: 887.033081 | D177: 0.002671363959 | E177: 0.005217352995
A178: 2010-12-15 | B178: 5892.299805 | C178: 888.117615 | D178: -0.003801278297 | E178: 0.0005306672738
A179: 2010-12-16 | B179: 5948.75 | C179: 896.791809 | D179: 0.004140881818 | E179: 0.004221148923
A180: 2010-12-20 | B180: 5947.049805 | C180: 908.218689 | D180: -0.0001241421886 | E180: 0.005498801511
A181: 2010-12-21 | B181: 6000.649902 | C181: 899.502502 | D181: 0.003896713693 | E181: -0.004188058724
A182: 2010-12-22 | B182: 5984.399902 | C182: 900.586975 | D182: -0.001177682158 | E182: 0.0005232858729
A183: 2010-12-23 | B183: 5980 | C183: 895.457397 | D183: -0.0003194231656 | E183: -0.002480733229
A184: 2010-12-24 | B184: 6011.600098 | C184: 896.666626 | D184: 0.00228889887 | E184: 0.0005860772525
A185: 2010-12-27 | B185: 5998.100098 | C185: 901.8797 | D185: -0.0009763737445 | E185: 0.002517606113
A186: 2010-12-28 | B186: 5996 | C186: 906.884094 | D186: -0.0001520849375 | E186: 0.002403173098
A187: 2010-12-29 | B187: 6060.350098 | C187: 903.547974 | D187: 0.004636089303 | E187: -0.001600568364
A188: 2010-12-30 | B188: 6101.850098 | C188: 897.792847 | D188: 0.002963820799 | E188: -0.002775075515
A189: 2010-12-31 | B189: 6134.5 | C189: 897.125671 | D189: 0.002317636519 | E189: -0.0003228568492
A190: 2011-01-03 | B190: 6157.600098 | C190: 896.124695 | D190: 0.001632309666 | E190: -0.0004848384885
A191: 2011-01-04 | B191: 6146.350098 | C191: 895.248718 | D191: -0.0007941862906 | E191: -0.0004247378072
A192: 2011-01-05 | B192: 6079.799805 | C192: 887.783936 | D192: -0.004728015067 | E192: -0.003636425351
A193: 2011-01-06 | B193: 6048.25 | C193: 852.878113 | D193: -0.002259544996 | E193: -0.01742031296
A194: 2011-01-07 | B194: 5904.600098 | C194: 835.988098 | D194: -0.01043924471 | E194: -0.00868687505
A195: 2011-01-10 | B195: 5762.850098 | C195: 847.498352 | D195: -0.01055316644 | E195: 0.005938767957
A196: 2011-01-11 | B196: 5754.100098 | C196: 858.382935 | D196: =LOG(B196)-LOG(B195) -> -0.0006599103726 | E196: =LOG(C196)-LOG(C195) -> 0.005542212724
A197: 2011-01-12 | B197: 5863.25 | C197: 857.715637 | D197: 0.008160999649 | E197: -0.0003377473282
A198: 2011-01-13 | B198: 5751.899902 | C198: 865.8479 | D198: -0.008327092643 | E198: 0.004098280196
A199: 2011-01-14 | B199: 5654.549805 | C199: 837.322693 | D199: -0.007413285922 | E199: -0.01454874641
A200: 2011-01-17 | B200: 5654.75 | C200: 841.70166 | D200: 1.537559094e-05 | E200: 0.002265322135
... 2287 more rows

Sheet Sheet1
E10: ACC's return can be split into two parts
E12: 1 | F12: Returns that are dependent on the market's returns | L12: m*X | M12: m is called the beta
E13: 2 | F13: Returns that are independent of the market's returns | L13: C | M13: c is called the alpha of the stock
E16: ACC's return = Nifty's return*0.8557 -4*(10^(-5))
E18: If Nifty goes up by 1%
E19: Then,
E20: ACC will go up by 0.8557% | H20: because of its beta with Nifty
E21: and
E22: ACC will go down by -4*10^(-5) | H22: because of its own alpha
E23: So,
E24: ACC finally will go up by 0.8557% -4*10^(-5)%
